[Event "Early-Titled-Tuesday-Blitz-June-18-2024"]
[Site "Chess.com"]
[Date "2024.06.18"]
[Round "3"]
[White "chessbaerchen"]
[Black "AndrewMaco"]
[Result "1-0"]
[WhiteElo "2691"]
[BlackElo "2686"]
[TimeControl "180+1"]
[EndTime "8:27:15 PDT"]
[Termination "chessbaerchen won by resignation"]

1. e4 {[%clk 0:03:00.9]} 1... c6 {[%clk 0:02:56.3]} 2. d4 {[%clk 0:03:00]} 2...
d5 {[%clk 0:02:55.1]} 3. Nc3 {[%clk 0:03:00.3]} 3... dxe4 {[%clk 0:02:55.2]} 4.
Nxe4 {[%clk 0:03:01.2]} 4... Nf6 {[%clk 0:02:55.9]} 5. Nxf6+ {[%clk 0:03:00.4]}
5... exf6 {[%clk 0:02:56.8]} 6. c3 {[%clk 0:03:00.6]} 6... Bd6 {[%clk
0:02:57.2]} 7. Bd3 {[%clk 0:03:00.9]} 7... O-O {[%clk 0:02:57.7]} 8. Ne2 {[%clk
0:03:01]} 8... Re8 {[%clk 0:02:58.1]} 9. O-O {[%clk 0:03:00.2]} 9... Nd7 {[%clk
0:02:58.2]} 10. Bf4 {[%clk 0:02:59.9]} 10... Nf8 {[%clk 0:02:56.7]} 11. Bxd6
{[%clk 0:02:58.7]} 11... Qxd6 {[%clk 0:02:57.6]} 12. Ng3 {[%clk 0:02:58.7]}
12... g6 {[%clk 0:02:53.6]} 13. Ne4 {[%clk 0:02:55.5]} 13... Qd8 {[%clk
0:02:49.3]} 14. Re1 {[%clk 0:02:55.2]} 14... Kg7 {[%clk 0:02:44.9]} 15. Qf3
{[%clk 0:02:42.2]} 15... Be6 {[%clk 0:02:37.6]} 16. Nc5 {[%clk 0:02:36.9]} 16...
Bd5 {[%clk 0:02:34.5]} 17. Qg3 {[%clk 0:02:30.6]} 17... b6 {[%clk 0:02:30.1]}
18. Nb7 {[%clk 0:02:08.2]} 18... Qd7 {[%clk 0:02:20]} 19. Nd6 {[%clk 0:01:56.4]}
19... Rxe1+ {[%clk 0:02:17]} 20. Rxe1 {[%clk 0:01:55.6]} 20... Rd8 {[%clk
0:02:15.7]} 21. Nf5+ {[%clk 0:01:52.6]} 21... Kh8 {[%clk 0:02:15.7]} 22. Re7
{[%clk 0:01:43.4]} 22... Re8 {[%clk 0:01:57]} 23. Rxd7 {[%clk 0:01:12.9]} 23...
gxf5 {[%clk 0:01:39.5]} 24. Rxd5 {[%clk 0:00:51.8]} 24... cxd5 {[%clk
0:01:36.7]} 25. h4 {[%clk 0:00:50.1]} 25... Re1+ {[%clk 0:01:28.1]} 26. Kh2
{[%clk 0:00:49.8]} 26... Ne6 {[%clk 0:01:27.7]} 27. Bxf5 {[%clk 0:00:49.2]} 1-0

[Event "Early-Titled-Tuesday-Blitz-June-18-2024"]
[Site "Chess.com"]
[Date "2024.06.18"]
[Round "3"]
[White "Stanbad1"]
[Black "Hudijegszid"]
[Result "0-1"]
[WhiteElo "2712"]
[BlackElo "2513"]
[TimeControl "180+1"]
[EndTime "8:27:17 PDT"]
[Termination "Hudijegszid won by resignation"]

1. d4 {[%clk 0:03:00.9]} 1... d5 {[%clk 0:02:59.8]} 2. Nc3 {[%clk 0:03:00.3]}
2... Nf6 {[%clk 0:02:58.8]} 3. Bf4 {[%clk 0:02:59.4]} 3... c5 {[%clk 0:02:57.9]}
4. e4 {[%clk 0:02:58.2]} 4... cxd4 {[%clk 0:02:56.1]} 5. Qxd4 {[%clk 0:02:58.2]}
5... Nc6 {[%clk 0:02:55.9]} 6. Bb5 {[%clk 0:02:58.8]} 6... Bd7 {[%clk
0:02:56.1]} 7. Bxc6 {[%clk 0:02:59.3]} 7... Bxc6 {[%clk 0:02:56.6]} 8. e5 {[%clk
0:02:59.9]} 8... Nd7 {[%clk 0:02:56.7]} 9. e6 {[%clk 0:03:00.4]} 9... fxe6
{[%clk 0:02:56.5]} 10. Nf3 {[%clk 0:03:01]} 10... Qb6 {[%clk 0:02:56.6]} 11. Qd2
{[%clk 0:03:01.2]} 11... d4 {[%clk 0:02:56]} 12. Qxd4 {[%clk 0:02:59.4]} 12...
Bxf3 {[%clk 0:02:54]} 13. Qxb6 {[%clk 0:02:58.8]} 13... axb6 {[%clk 0:02:51.5]}
14. gxf3 {[%clk 0:02:58.5]} 14... g6 {[%clk 0:02:50.7]} 15. Nb5 {[%clk
0:02:52.1]} 15... Kf7 {[%clk 0:02:48.5]} 16. a4 {[%clk 0:02:50]} 16... Bg7
{[%clk 0:02:46.7]} 17. Ra2 {[%clk 0:02:48.6]} 17... Rhc8 {[%clk 0:02:43.4]} 18.
b3 {[%clk 0:02:45.2]} 18... Rc5 {[%clk 0:02:36.9]} 19. c4 {[%clk 0:02:36]} 19...
Rf5 {[%clk 0:02:35.1]} 20. Be3 {[%clk 0:02:33.4]} 20... Nc5 {[%clk 0:02:32.6]}
21. Bxc5 {[%clk 0:02:25.1]} 21... bxc5 {[%clk 0:02:32.1]} 22. Ke2 {[%clk
0:02:25.6]} 22... Bd4 {[%clk 0:02:27.6]} 23. Nxd4 {[%clk 0:02:16.5]} 23... cxd4
{[%clk 0:02:27.7]} 24. Rd1 {[%clk 0:02:17.1]} 24... e5 {[%clk 0:02:28.1]} 25. b4
{[%clk 0:02:14]} 25... Ke6 {[%clk 0:02:28.2]} 26. a5 {[%clk 0:02:11.3]} 26... g5
{[%clk 0:02:27.3]} 27. b5 {[%clk 0:02:07.4]} 27... Raf8 {[%clk 0:02:26.9]} 28.
Rd3 {[%clk 0:02:03.2]} 28... g4 {[%clk 0:02:24.7]} 29. a6 {[%clk 0:02:01.3]}
29... gxf3+ {[%clk 0:02:24.8]} 30. Kd2 {[%clk 0:02:00.8]} 30... bxa6 {[%clk
0:02:14.3]} 31. Rxa6+ {[%clk 0:02:00.3]} 31... Kf7 {[%clk 0:02:14.5]} 32. b6
{[%clk 0:01:58.1]} 32... Rd8 {[%clk 0:02:14.2]} 33. Rb3 {[%clk 0:01:56.9]} 33...
e4 {[%clk 0:02:14]} 34. Ke1 {[%clk 0:01:52.6]} 34... e3 {[%clk 0:02:11.4]} 35.
Ra1 {[%clk 0:01:49.1]} 35... d3 {[%clk 0:02:10.8]} 36. fxe3 {[%clk 0:01:32.2]}
36... d2+ {[%clk 0:02:11]} 37. Kf2 {[%clk 0:01:31.9]} 37... d1=Q {[%clk
0:02:11.1]} 38. Rxd1 {[%clk 0:01:31.8]} 38... Rxd1 {[%clk 0:02:11.2]} 39. b7
{[%clk 0:01:32.3]} 39... Rd2+ {[%clk 0:02:11]} 40. Ke1 {[%clk 0:01:28.7]} 40...
Rxh2 {[%clk 0:01:48.2]} 41. Kf1 {[%clk 0:01:11.9]} 41... f2 {[%clk 0:01:36.2]}
0-1

[Event "Early-Titled-Tuesday-Blitz-June-18-2024"]
[Site "Chess.com"]
[Date "2024.06.18"]
[Round "3"]
[White "dealshark"]
[Black "vladgoncharov"]
[Result "0-1"]
[WhiteElo "2453"]
[BlackElo "2653"]
[TimeControl "180+1"]
[EndTime "8:27:17 PDT"]
[Termination "vladgoncharov won by resignation"]

1. e4 {[%clk 0:03:00.9]} 1... e6 {[%clk 0:02:57.9]} 2. d4 {[%clk 0:03:00.1]}
2... d5 {[%clk 0:02:57.4]} 3. exd5 {[%clk 0:02:59.9]} 3... exd5 {[%clk 0:02:57]}
4. Bd3 {[%clk 0:03:00.3]} 4... Nc6 {[%clk 0:02:57]} 5. Ne2 {[%clk 0:02:55.1]}
5... Bd6 {[%clk 0:02:56]} 6. O-O {[%clk 0:02:53.5]} 6... Nf6 {[%clk 0:02:51.4]}
7. Bg5 {[%clk 0:02:52.2]} 7... h6 {[%clk 0:02:50.5]} 8. Be3 {[%clk 0:02:32.5]}
8... Bg4 {[%clk 0:02:30.7]} 9. f3 {[%clk 0:02:28.2]} 9... Be6 {[%clk 0:02:28.2]}
10. Nd2 {[%clk 0:02:27.4]} 10... Qd7 {[%clk 0:02:27]} 11. c4 {[%clk 0:02:19.3]}
11... dxc4 {[%clk 0:02:25]} 12. Nxc4 {[%clk 0:02:19.5]} 12... O-O {[%clk
0:02:23.6]} 13. Nxd6 {[%clk 0:02:18.4]} 13... Qxd6 {[%clk 0:02:22.5]} 14. Qd2
{[%clk 0:01:58.3]} 14... Nb4 {[%clk 0:01:55.1]} 15. Bb1 {[%clk 0:01:55.8]} 15...
Nbd5 {[%clk 0:01:51.8]} 16. Bf2 {[%clk 0:01:53.2]} 16... Rad8 {[%clk 0:01:49.4]}
17. Bg3 {[%clk 0:01:51.7]} 17... Qb6 {[%clk 0:01:44.9]} 18. Rd1 {[%clk
0:01:47.4]} 18... Rfe8 {[%clk 0:01:43.6]} 19. Bf2 {[%clk 0:01:46.4]} 19... c6
{[%clk 0:01:42.5]} 20. Nc3 {[%clk 0:01:43.9]} 20... Qb4 {[%clk 0:01:38.8]} 21.
Nxd5 {[%clk 0:01:42]} 21... Nxd5 {[%clk 0:01:37.9]} 22. Qxb4 {[%clk 0:01:38.6]}
22... Nxb4 {[%clk 0:01:37.6]} 23. d5 {[%clk 0:01:17.1]} 23... Rxd5 {[%clk
0:01:36.8]} 24. Rxd5 {[%clk 0:01:15.8]} 24... Bxd5 {[%clk 0:01:36.2]} 25. Bxa7
{[%clk 0:01:13.8]} 25... Re1+ {[%clk 0:01:35.3]} 26. Kf2 {[%clk 0:01:13.9]}
26... Nc2 {[%clk 0:01:33.5]} 27. Bc5 {[%clk 0:00:59]} 27... Rh1 {[%clk
0:01:29.7]} 28. Kg3 {[%clk 0:00:56.4]} 28... Nxa1 {[%clk 0:01:28.2]} 0-1

[Event "Early-Titled-Tuesday-Blitz-June-18-2024"]
[Site "Chess.com"]
[Date "2024.06.18"]
[Round "3"]
[White "jamengrand"]
[Black "Alexchess1984"]
[Result "1-0"]
[WhiteElo "2307"]
[BlackElo "2550"]
[TimeControl "180+1"]
[EndTime "8:27:17 PDT"]
[Termination "jamengrand won by resignation"]

1. e4 {[%clk 0:03:00.9]} 1... e6 {[%clk 0:02:59.7]} 2. d4 {[%clk 0:03:00.7]}
2... d5 {[%clk 0:03:00.1]} 3. e5 {[%clk 0:03:01.2]} 3... b6 {[%clk 0:03:00.1]}
4. Nf3 {[%clk 0:03:00.3]} 4... Qd7 {[%clk 0:02:59.9]} 5. c4 {[%clk 0:02:58.7]}
5... Ba6 {[%clk 0:02:55.7]} 6. Nc3 {[%clk 0:02:58]} 6... Bxc4 {[%clk 0:02:51.7]}
7. Bxc4 {[%clk 0:02:56.9]} 7... dxc4 {[%clk 0:02:52]} 8. O-O {[%clk 0:02:57]}
8... Bb4 {[%clk 0:02:49.6]} 9. Ne4 {[%clk 0:02:56.4]} 9... Ne7 {[%clk
0:02:31.9]} 10. Qe2 {[%clk 0:02:51.9]} 10... Nbc6 {[%clk 0:02:20]} 11. Qxc4
{[%clk 0:02:46.7]} 11... Qd5 {[%clk 0:02:19.4]} 12. Qe2 {[%clk 0:02:45.6]} 12...
Nxd4 {[%clk 0:02:10.8]} 13. Nxd4 {[%clk 0:02:45]} 13... Qxd4 {[%clk 0:02:10.2]}
14. Bf4 {[%clk 0:02:10.5]} 14... Nd5 {[%clk 0:01:59.3]} 15. Rad1 {[%clk
0:01:47.1]} 15... Nxf4 {[%clk 0:01:25.1]} 16. Qb5+ {[%clk 0:01:46.6]} 16... Ke7
{[%clk 0:01:11.5]} 17. Rxd4 {[%clk 0:01:43.2]} 17... c6 {[%clk 0:01:04.8]} 18.
Qxb4+ {[%clk 0:01:32.9]} 18... c5 {[%clk 0:01:05.3]} 19. Nxc5 {[%clk 0:01:28.2]}
19... Ne2+ {[%clk 0:01:03.5]} 20. Kh1 {[%clk 0:01:27.9]} 20... Nxd4 {[%clk
0:01:03.2]} 21. Na6+ {[%clk 0:01:18.9]} 1-0

[Event "Early-Titled-Tuesday-Blitz-June-18-2024"]
[Site "Chess.com"]
[Date "2024.06.18"]
[Round "3"]
[White "SharathRk6"]
[Black "cristiano78"]
[Result "1-0"]
[WhiteElo "2450"]
[BlackElo "2229"]
[TimeControl "180+1"]
[EndTime "8:27:18 PDT"]
[Termination "SharathRk6 won by resignation"]

1. b3 {[%clk 0:03:00.9]} 1... e5 {[%clk 0:02:58.9]} 2. Bb2 {[%clk 0:03:01.5]}
2... Nc6 {[%clk 0:02:58.8]} 3. e3 {[%clk 0:02:59.3]} 3... a6 {[%clk 0:02:58.1]}
4. Nf3 {[%clk 0:02:59]} 4... d6 {[%clk 0:02:56.4]} 5. Be2 {[%clk 0:02:58.5]}
5... g6 {[%clk 0:02:56.3]} 6. O-O {[%clk 0:02:59]} 6... Bg7 {[%clk 0:02:55.6]}
7. c4 {[%clk 0:02:59.6]} 7... Nh6 {[%clk 0:02:53.3]} 8. d4 {[%clk 0:02:59]} 8...
exd4 {[%clk 0:02:53.2]} 9. exd4 {[%clk 0:02:58.3]} 9... O-O {[%clk 0:02:50.3]}
10. Nbd2 {[%clk 0:02:58.7]} 10... Nf5 {[%clk 0:02:49.4]} 11. Ne4 {[%clk
0:02:56.4]} 11... Re8 {[%clk 0:02:49.1]} 12. Ng3 {[%clk 0:02:55.8]} 12... Nxg3
{[%clk 0:02:45.3]} 13. hxg3 {[%clk 0:02:55.4]} 13... Bg4 {[%clk 0:02:42]} 14.
Qd2 {[%clk 0:02:53.2]} 14... Qd7 {[%clk 0:02:32.8]} 15. Rfe1 {[%clk 0:02:51.2]}
15... Bxf3 {[%clk 0:02:30.6]} 16. Bxf3 {[%clk 0:02:50.8]} 16... Rxe1+ {[%clk
0:02:30.2]} 17. Rxe1 {[%clk 0:02:51.7]} 17... Re8 {[%clk 0:02:29.7]} 18. Rxe8+
{[%clk 0:02:48.7]} 18... Qxe8 {[%clk 0:02:27.8]} 19. Qe3 {[%clk 0:02:47.4]}
19... Qxe3 {[%clk 0:02:24.1]} 20. fxe3 {[%clk 0:02:48.3]} 20... Kf8 {[%clk
0:02:21.9]} 21. Bg4 {[%clk 0:02:47.6]} 21... f5 {[%clk 0:02:21.1]} 22. Bf3
{[%clk 0:02:47.2]} 22... Ke7 {[%clk 0:02:21.2]} 23. Kf2 {[%clk 0:02:47.7]} 23...
Bf6 {[%clk 0:02:20.7]} 24. g4 {[%clk 0:02:48]} 24... fxg4 {[%clk 0:02:20.3]} 25.
Bxg4 {[%clk 0:02:48.6]} 25... Nd8 {[%clk 0:02:19.6]} 26. Ba3 {[%clk 0:02:43.1]}
26... Nf7 {[%clk 0:02:17.8]} 27. Bc8 {[%clk 0:02:41.7]} 27... Nd8 {[%clk
0:02:16.3]} 28. Ke2 {[%clk 0:02:39.9]} 28... h5 {[%clk 0:02:14.8]} 29. Kd3
{[%clk 0:02:39.2]} 29... g5 {[%clk 0:02:14.6]} 30. e4 {[%clk 0:02:39.5]} 30...
Bg7 {[%clk 0:02:07.5]} 31. e5 {[%clk 0:02:33.1]} 31... a5 {[%clk 0:02:01.3]} 32.
Ke4 {[%clk 0:02:31]} 32... b6 {[%clk 0:01:55.9]} 33. Kf5 {[%clk 0:02:26.2]}
33... Nf7 {[%clk 0:01:53.1]} 34. Kg6 {[%clk 0:01:56.5]} 34... Bf8 {[%clk
0:01:52.6]} 35. e6 {[%clk 0:01:55.4]} 35... Nd8 {[%clk 0:01:43.6]} 36. d5 {[%clk
0:01:55.7]} 36... g4 {[%clk 0:01:33.3]} 37. Kxh5 {[%clk 0:01:55]} 37... Bg7
{[%clk 0:01:33]} 38. Kxg4 {[%clk 0:01:55]} 38... Bf6 {[%clk 0:01:31.7]} 39. Kf5
{[%clk 0:01:54.9]} 39... c6 {[%clk 0:01:28.9]} 40. g4 {[%clk 0:01:52.1]} 40...
cxd5 {[%clk 0:01:28.7]} 41. cxd5 {[%clk 0:01:52.9]} 41... Be5 {[%clk 0:01:28.5]}
42. g5 {[%clk 0:01:52.5]} 42... b5 {[%clk 0:01:22.6]} 43. Bc1 {[%clk 0:01:51.3]}
43... b4 {[%clk 0:01:22.7]} 44. Kg6 {[%clk 0:01:50.8]} 1-0

[Event "Early-Titled-Tuesday-Blitz-June-18-2024"]
[Site "Chess.com"]
[Date "2024.06.18"]
[Round "3"]
[White "Heliosis11"]
[Black "JosefineHeinemann"]
[Result "1-0"]
[WhiteElo "2441"]
[BlackElo "2489"]
[TimeControl "180+1"]
[EndTime "8:27:27 PDT"]
[Termination "Heliosis11 won by resignation"]

1. d4 {[%clk 0:03:00.9]} 1... Nf6 {[%clk 0:02:55.2]} 2. c4 {[%clk 0:03:00.5]}
2... e6 {[%clk 0:02:47.9]} 3. g3 {[%clk 0:03:00.7]} 3... d5 {[%clk 0:02:46.9]}
4. Nf3 {[%clk 0:02:59.1]} 4... Bb4+ {[%clk 0:02:44.9]} 5. Bd2 {[%clk 0:02:58.7]}
5... Be7 {[%clk 0:02:43]} 6. Bg2 {[%clk 0:02:58.9]} 6... O-O {[%clk 0:02:43.1]}
7. O-O {[%clk 0:02:59.3]} 7... c6 {[%clk 0:02:43.3]} 8. Nc3 {[%clk 0:02:56.6]}
8... dxc4 {[%clk 0:02:34.8]} 9. a4 {[%clk 0:02:53]} 9... Nbd7 {[%clk 0:02:25.9]}
10. e4 {[%clk 0:02:52.7]} 10... a5 {[%clk 0:02:21.9]} 11. Qe2 {[%clk 0:02:48.7]}
11... Nb6 {[%clk 0:02:19.5]} 12. Rfd1 {[%clk 0:02:45.4]} 12... Nfd7 {[%clk
0:01:57.3]} 13. Be3 {[%clk 0:02:33.8]} 13... Bb4 {[%clk 0:01:48.9]} 14. Nd2
{[%clk 0:02:32.7]} 14... e5 {[%clk 0:01:41.4]} 15. Nxc4 {[%clk 0:02:31.7]} 15...
Nxc4 {[%clk 0:01:39.5]} 16. Qxc4 {[%clk 0:02:32.6]} 16... exd4 {[%clk
0:01:39.7]} 17. Bxd4 {[%clk 0:02:31.4]} 17... Qe7 {[%clk 0:01:39.4]} 18. f4
{[%clk 0:02:19.7]} 18... Nf6 {[%clk 0:01:10.8]} 19. e5 {[%clk 0:02:16.8]} 19...
Ne8 {[%clk 0:01:01.6]} 20. Ne4 {[%clk 0:02:13.1]} 20... Be6 {[%clk 0:00:49.1]}
21. Qe2 {[%clk 0:02:11.4]} 21... Nc7 {[%clk 0:00:41.3]} 22. Nf6+ {[%clk
0:01:55.6]} 22... gxf6 {[%clk 0:00:33.9]} 23. exf6 {[%clk 0:01:56.5]} 23... Qe8
{[%clk 0:00:34.1]} 24. Qh5 {[%clk 0:01:55.5]} 1-0

[Event "Early-Titled-Tuesday-Blitz-June-18-2024"]
[Site "Chess.com"]
[Date "2024.06.18"]
[Round "3"]
[White "Attacker_2006"]
[Black "SaqoChess_Twitch"]
[Result "1-0"]
[WhiteElo "2474"]
[BlackElo "2637"]
[TimeControl "180+1"]
[EndTime "8:27:33 PDT"]
[Termination "Attacker_2006 won by resignation"]

1. d4 {[%clk 0:03:00.9]} 1... d5 {[%clk 0:02:59.8]} 2. Nf3 {[%clk 0:02:58.6]}
2... e6 {[%clk 0:02:59.8]} 3. Bf4 {[%clk 0:02:56.9]} 3... Nf6 {[%clk 0:03:00.7]}
4. e3 {[%clk 0:02:55.6]} 4... Be7 {[%clk 0:03:01.3]} 5. Ne5 {[%clk 0:02:55.7]}
5... O-O {[%clk 0:03:02]} 6. Bd3 {[%clk 0:02:52.9]} 6... c5 {[%clk 0:03:02]} 7.
c3 {[%clk 0:02:53.4]} 7... Ne4 {[%clk 0:02:59.4]} 8. Nd2 {[%clk 0:02:50.3]} 8...
f5 {[%clk 0:02:59]} 9. f3 {[%clk 0:02:50.5]} 9... Nxd2 {[%clk 0:02:58.5]} 10.
Kxd2 {[%clk 0:02:48.7]} 10... Nd7 {[%clk 0:02:58.9]} 11. g4 {[%clk 0:02:47.7]}
11... Nxe5 {[%clk 0:02:58.5]} 12. Bxe5 {[%clk 0:02:47.9]} 12... cxd4 {[%clk
0:02:58.7]} 13. exd4 {[%clk 0:02:47]} 13... fxg4 {[%clk 0:02:57.5]} 14. fxg4
{[%clk 0:02:46.9]} 14... Bg5+ {[%clk 0:02:57.4]} 15. Kc2 {[%clk 0:02:45]} 15...
Rf2+ {[%clk 0:02:54.2]} 16. Kb1 {[%clk 0:02:44.4]} 16... Bd7 {[%clk 0:02:47.4]}
17. h4 {[%clk 0:02:41.1]} 17... Be3 {[%clk 0:02:41.1]} 18. g5 {[%clk 0:02:32.7]}
18... Rd2 {[%clk 0:02:37.5]} 19. Qf1 {[%clk 0:02:01.5]} 19... Qb6 {[%clk
0:02:12.6]} 20. b3 {[%clk 0:01:48.8]} 20... Qa5 {[%clk 0:02:07.2]} 21. Bxh7+
{[%clk 0:01:36.4]} 21... Kxh7 {[%clk 0:00:51.6]} 22. Qf7 {[%clk 0:01:35.6]}
22... Rb2+ {[%clk 0:00:51.1]} 23. Kxb2 {[%clk 0:01:33.8]} 23... Qxc3+ {[%clk
0:00:47]} 24. Kxc3 {[%clk 0:01:32.4]} 24... Rc8+ {[%clk 0:00:47]} 25. Kb2 {[%clk
0:01:30]} 25... Bxd4+ {[%clk 0:00:46.2]} 26. Bxd4 {[%clk 0:01:28.3]} 26... e5
{[%clk 0:00:46.7]} 27. Bxe5 {[%clk 0:01:26.8]} 27... Rc2+ {[%clk 0:00:46.4]} 28.
Kxc2 {[%clk 0:01:24.6]} 28... Bf5+ {[%clk 0:00:46.7]} 29. Kd2 {[%clk 0:01:24.2]}
1-0

[Event "Early-Titled-Tuesday-Blitz-June-18-2024"]
[Site "Chess.com"]
[Date "2024.06.18"]
[Round "3"]
[White "elizabethcastaneda"]
[Black "PapaieDudu"]
[Result "1-0"]
[WhiteElo "2032"]
[BlackElo "2346"]
[TimeControl "180+1"]
[EndTime "8:27:44 PDT"]
[Termination "elizabethcastaneda won by checkmate"]

1. e4 {[%clk 0:02:59.1]} 1... c5 {[%clk 0:03:00.2]} 2. Nf3 {[%clk 0:02:58.8]}
2... d6 {[%clk 0:03:00.7]} 3. d4 {[%clk 0:02:58.4]} 3... cxd4 {[%clk 0:03:01.1]}
4. Nxd4 {[%clk 0:02:58.5]} 4... Nf6 {[%clk 0:03:01.7]} 5. Nc3 {[%clk 0:02:58.7]}
5... a6 {[%clk 0:03:01.7]} 6. Be3 {[%clk 0:02:58.8]} 6... e6 {[%clk 0:03:02]} 7.
Be2 {[%clk 0:02:52.9]} 7... b5 {[%clk 0:03:02.5]} 8. a4 {[%clk 0:02:48.8]} 8...
b4 {[%clk 0:03:02.3]} 9. Na2 {[%clk 0:02:41.7]} 9... Nxe4 {[%clk 0:02:59.7]} 10.
Bf3 {[%clk 0:02:39.3]} 10... d5 {[%clk 0:02:55.3]} 11. c3 {[%clk 0:02:33.2]}
11... a5 {[%clk 0:02:52.6]} 12. O-O {[%clk 0:02:21.2]} 12... Bd6 {[%clk
0:02:50.6]} 13. Bxe4 {[%clk 0:01:35.5]} 13... dxe4 {[%clk 0:02:48.4]} 14. Nb5
{[%clk 0:01:35.9]} 14... Ra6 {[%clk 0:02:40.2]} 15. Qg4 {[%clk 0:01:29]} 15...
O-O {[%clk 0:02:35.4]} 16. Rfd1 {[%clk 0:01:07.7]} 16... f5 {[%clk 0:02:13.1]}
17. Qe2 {[%clk 0:01:01.2]} 17... f4 {[%clk 0:01:21.6]} 18. Bc5 {[%clk 0:00:58]}
18... Qg5 {[%clk 0:01:14.2]} 19. Bxd6 {[%clk 0:00:51.9]} 19... f3 {[%clk
0:01:12.1]} 20. Qf1 {[%clk 0:00:51.7]} 20... e3 {[%clk 0:01:07.7]} 21. fxe3
{[%clk 0:00:37.4]} 21... fxg2 {[%clk 0:01:05.4]} 22. Qxf8# {[%clk 0:00:36.6]}
1-0

[Event "Early-Titled-Tuesday-Blitz-June-18-2024"]
[Site "Chess.com"]
[Date "2024.06.18"]
[Round "3"]
[White "Resourchess"]
[Black "Ordekalog"]
[Result "0-1"]
[WhiteElo "2386"]
[BlackElo "2621"]
[TimeControl "180+1"]
[EndTime "8:27:54 PDT"]
[Termination "Ordekalog won by resignation"]

1. d4 {[%clk 0:03:00.9]} 1... d5 {[%clk 0:02:59]} 2. c4 {[%clk 0:03:00.5]} 2...
e6 {[%clk 0:02:58.9]} 3. Nc3 {[%clk 0:03:00]} 3... c5 {[%clk 0:02:58.7]} 4. e3
{[%clk 0:02:58]} 4... Nf6 {[%clk 0:02:57.7]} 5. Nf3 {[%clk 0:02:56.9]} 5... Nc6
{[%clk 0:02:58.3]} 6. a3 {[%clk 0:02:56.8]} 6... a6 {[%clk 0:02:58.2]} 7. dxc5
{[%clk 0:02:55.5]} 7... Bxc5 {[%clk 0:02:59.1]} 8. b4 {[%clk 0:02:54.6]} 8...
Ba7 {[%clk 0:02:59.6]} 9. Bb2 {[%clk 0:02:53.8]} 9... O-O {[%clk 0:02:59.4]} 10.
Be2 {[%clk 0:02:51.1]} 10... dxc4 {[%clk 0:02:53.4]} 11. Bxc4 {[%clk 0:02:50.4]}
11... b5 {[%clk 0:02:52.7]} 12. Be2 {[%clk 0:02:47.6]} 12... Bb7 {[%clk
0:02:52.3]} 13. O-O {[%clk 0:02:46.7]} 13... Qe7 {[%clk 0:02:51.3]} 14. Qb3
{[%clk 0:02:35.5]} 14... Rad8 {[%clk 0:02:48.3]} 15. h3 {[%clk 0:02:31.5]} 15...
Bb8 {[%clk 0:02:48]} 16. Rfd1 {[%clk 0:02:30.2]} 16... Ne5 {[%clk 0:02:47.6]}
17. Nxe5 {[%clk 0:02:16.1]} 17... Bxe5 {[%clk 0:02:47.8]} 18. Na2 {[%clk
0:02:15.2]} 18... Bd5 {[%clk 0:02:42]} 19. Qc2 {[%clk 0:02:07.4]} 19... Be4
{[%clk 0:02:34.8]} 20. Qc1 {[%clk 0:01:55.9]} 20... Rc8 {[%clk 0:02:25.1]} 21.
Bxe5 {[%clk 0:01:55.8]} 21... Rxc1 {[%clk 0:02:23.8]} 22. Raxc1 {[%clk
0:01:56.7]} 22... Qb7 {[%clk 0:02:07.4]} 23. f3 {[%clk 0:01:53.4]} 23... Bd5
{[%clk 0:02:06.5]} 24. Nc3 {[%clk 0:01:51.6]} 24... Nd7 {[%clk 0:02:04.8]} 25.
Nxd5 {[%clk 0:01:31.8]} 25... Nxe5 {[%clk 0:02:04.3]} 26. Rc7 {[%clk 0:01:30.1]}
26... Qb8 {[%clk 0:02:02.2]} 27. Ne7+ {[%clk 0:01:28.2]} 27... Kh8 {[%clk
0:02:02.3]} 28. Rdc1 {[%clk 0:01:28.3]} 28... Qd8 {[%clk 0:01:54.8]} 29. f4
{[%clk 0:01:13.6]} 29... Nc4 {[%clk 0:01:54]} 30. Rb7 {[%clk 0:00:29.7]} 30...
Qd2 {[%clk 0:01:51.3]} 31. Rxc4 {[%clk 0:00:29.6]} 31... Qxe3+ {[%clk
0:01:50.7]} 32. Kh1 {[%clk 0:00:29.2]} 32... bxc4 {[%clk 0:01:50.4]} 33. Bf3
{[%clk 0:00:27.7]} 33... Qc1+ {[%clk 0:01:49.1]} 34. Kh2 {[%clk 0:00:27.2]}
34... Qxf4+ {[%clk 0:01:49.7]} 35. Kg1 {[%clk 0:00:27.4]} 35... c3 {[%clk
0:01:48.8]} 36. Rb6 {[%clk 0:00:14.2]} 36... Qe3+ {[%clk 0:01:48.1]} 0-1

[Event "Early-Titled-Tuesday-Blitz-June-18-2024"]
[Site "Chess.com"]
[Date "2024.06.18"]
[Round "3"]
[White "KononenkoD"]
[Black "sansanathalia"]
[Result "0-1"]
[WhiteElo "2618"]
[BlackElo "2449"]
[TimeControl "180+1"]
[EndTime "8:27:56 PDT"]
[Termination "sansanathalia won by checkmate"]

1. e4 {[%clk 0:03:00]} 1... c5 {[%clk 0:02:58.3]} 2. Nf3 {[%clk 0:02:59.8]} 2...
d6 {[%clk 0:02:55.1]} 3. d4 {[%clk 0:02:59.4]} 3... cxd4 {[%clk 0:02:54.9]} 4.
Nxd4 {[%clk 0:03:00.3]} 4... Nf6 {[%clk 0:02:55.1]} 5. Nc3 {[%clk 0:03:00.1]}
5... a6 {[%clk 0:02:55.5]} 6. Bc4 {[%clk 0:02:59.8]} 6... e6 {[%clk 0:02:54.9]}
7. Bb3 {[%clk 0:02:59.6]} 7... Be7 {[%clk 0:02:55.5]} 8. g4 {[%clk 0:02:57]}
8... O-O {[%clk 0:02:44]} 9. g5 {[%clk 0:02:53.6]} 9... Nfd7 {[%clk 0:02:30.5]}
10. h4 {[%clk 0:02:52.2]} 10... Nc6 {[%clk 0:02:19.2]} 11. Be3 {[%clk
0:02:50.4]} 11... Nc5 {[%clk 0:02:15]} 12. Qg4 {[%clk 0:02:46.4]} 12... Nxd4
{[%clk 0:01:47.4]} 13. Bxd4 {[%clk 0:02:44.1]} 13... e5 {[%clk 0:01:46.4]} 14.
Qd1 {[%clk 0:02:44.3]} 14... exd4 {[%clk 0:01:45.4]} 15. Qxd4 {[%clk 0:02:45.2]}
15... Nxb3 {[%clk 0:01:45.3]} 16. axb3 {[%clk 0:02:43.9]} 16... Be6 {[%clk
0:01:41.1]} 17. O-O-O {[%clk 0:02:43]} 17... Rc8 {[%clk 0:01:13.7]} 18. Kb1
{[%clk 0:02:42.1]} 18... Qa5 {[%clk 0:01:03.4]} 19. f4 {[%clk 0:02:40.9]} 19...
f5 {[%clk 0:00:53.5]} 20. Rhe1 {[%clk 0:02:29.5]} 20... Rfe8 {[%clk 0:00:42.7]}
21. h5 {[%clk 0:02:21.6]} 21... fxe4 {[%clk 0:00:39]} 22. h6 {[%clk 0:02:16.1]}
22... Bf8 {[%clk 0:00:35.2]} 23. Rxe4 {[%clk 0:02:08.5]} 23... Bf5 {[%clk
0:00:30.1]} 24. Rxe8 {[%clk 0:02:07]} 24... Rxe8 {[%clk 0:00:31]} 25. Qc4+
{[%clk 0:02:06.6]} 25... Be6 {[%clk 0:00:28.6]} 26. Qe4 {[%clk 0:01:52.1]} 26...
Bf7 {[%clk 0:00:24]} 27. Qxb7 {[%clk 0:01:47.6]} 27... Qf5 {[%clk 0:00:19.2]}
28. hxg7 {[%clk 0:01:39.3]} 28... Bxg7 {[%clk 0:00:19]} 29. Rxd6 {[%clk
0:01:33]} 29... Re1+ {[%clk 0:00:17]} 30. Ka2 {[%clk 0:01:32.3]} 30... Qa5+
{[%clk 0:00:16.7]} 31. Na4 {[%clk 0:01:31.6]} 31... Qxa4# {[%clk 0:00:17.1]} 0-1